{"text_format":"1","workbook":"xlsx","n_sheets":5,"sheets":["1 Page de garde","2 Calcul de la subvention ","3 Moyens mis en Oeuvre ","4 Budget prévisionnel","5 Contrat d'engagement républic"],"not_rendered":{"charts":0,"images":2,"macros":1,"external_links":0,"defined_names":6,"comments":0,"pivot_tables":0},"unopened":[],"bounds":{"document_bytes":16777216,"sheet_cells":100000,"rows_first":2000,"rows_last":500,"rows_between":2000,"halvings":0,"cell_chars":16384,"cell_head_chars":4096},"cells_cut":0,"cells_raw":0,"read":"whole","date_system":"1900"}

{"sheet":"1 Page de garde","index":0,"n_rows":43,"n_cols":6,"rows_kept":43,"cut":false,"hidden":false,"merged":[[15,1,15,2],[15,4,15,5],[37,1,37,3],[5,0,5,5],[28,2,28,4],[9,2,9,3],[17,2,17,3],[19,2,19,5],[21,2,21,5],[23,2,23,3],[25,2,26,5],[36,1,36,3]]}
[]
[]
[]
[]
[]
["Demande de subvention \nde fonctionnement pédagogique et d'Aide sociale"]
["Programme J203 \"Accompagner les élèves dans la réussite de leur parcours scolaire\""]
["Convention cadre 2023-2028 entre la Région et la FNEP "]
[]
[null,"Année Scolaire : "]
[]
[]
[null,"Ecole de Production : "]
[]
[]
["N° de Siret",null,null,"Code UAI : "]
[]
[null,"Année de création"]
[]
["Nom du Président"]
[]
["Nom du Directeur :  "]
[]
[null,"Téléphone mobile : "]
[]
[null,"Adresse de l'école : "]
[]
[]
[null,"Mail : "]
[]
[null,"Subvention sollicitée Année Scolaire ",null,null,{"$f":"'2 Calcul de la subvention '!G56:H56","v":0},0]
[null,"Subvention sollicitée Année Scolaire Passée"]
[]
["Nombre de nouveau (x) groupe (s) à la rentrée"]
["Nombre de nouvelle (s) formation (s) à la rentrée",null,null,0]
[]
[null,"Date"]
[null,"Signature Président ou délégataire : "]
[]
[]
[]
[]
["A déposer dans le portail des aides régional_AIDEN et transmettre au Responsable Régional FNEP"]

{"sheet":"2 Calcul de la subvention ","index":1,"n_rows":56,"n_cols":10,"rows_kept":56,"cut":false,"hidden":false,"merged":[[46,0,46,2],[42,0,42,2],[43,0,43,2],[14,0,14,2],[44,0,44,2],[41,6,41,7],[10,0,10,2],[11,0,11,2],[38,0,38,2],[26,4,26,5],[4,2,4,3],[12,0,12,2],[13,0,13,2],[55,6,55,7],[55,4,55,5],[8,0,8,2],[9,0,9,2],[16,0,16,2],[18,0,18,2],[19,0,19,2],[20,0,20,2],[21,0,21,2],[22,0,22,2],[23,0,23,2],[36,0,36,2],[37,0,37,2],[49,6,49,7],[50,6,50,7],[51,0,51,2],[52,0,52,2],[51,6,51,7],[52,6,52,7],[49,0,49,2],[53,0,53,2],[53,6,53,7],[54,4,54,5],[54,6,54,7],[50,0,50,2],[7,4,7,5],[45,6,45,7],[47,0,47,2],[45,0,45,2],[48,0,48,2],[27,0,27,2],[28,0,28,2],[29,0,29,2],[30,0,30,2],[31,0,31,2],[46,6,46,7],[47,6,47,7],[48,6,48,7],[42,6,42,7],[43,6,43,7],[44,6,44,7]]}
[]
[null,null,null,null,null,null,null,null,"Electricité",170]
[null,null,null,null,null,null,null,null,"Paysage",120]
[null,null,null,null,null,null,null,null,"Chaudronnerie",200]
[null,null,"Ecole de Production : ",null,null,null,null,null,"Cuisine",180]
[null,null,null,null,null,null,null,null,"Service",180]
["1-CAP",null,"Année scolaire : ",null,null,null,null,null,"PSR",180]
["1 groupe si ≥ à 8 élèves",null,null,null,"effectifs",null,null,null,"Serrurier Métallier",160]
["Formations dispensées ",null,null,"Nbre de groupes","1ere année","2ème année",null,null,"IMTB",180]
[null,null,null,0,null,null,"A",null,"CIP",176]
[null,null,null,0,null,null,"B",null,"Construction Bois",200]
[null,null,null,{"$f":"IF(E12<8,0,1)+IF(F12<8,0,1)","v":0},null,null,"C",null,"Automobile",200]
[null,null,null,0,null,null,"D",null,"Couture",160]
[null,null,null,0,null,null,"E",null,"Menuisier ",160]
[null,null,null,0,null,null,"F",null,"Matériel Espaces verts",200]
[null,null,null,{"$f":"SUM(D10:D15)","v":0},{"$f":"SUM(E10:E15)","v":0},{"$f":"SUM(F10:F15)","v":0},{"$f":"E16+F16","v":0}]
["Formations dispensées ",null,null,"effectif > 9 (0, 1, 2 ou 3)",null,"Subvention"]
[null,null,null,"1ère année","2ème année"]
[null,null,null,{"$f":"IF((E10-9)<0,0,IF((E10-9)>9,1,IF((E10-9)>3,3,(E10-9))))","v":0},{"$f":"IF((F10-9)<0,0,IF((F10-9)>9,1,IF((F10-11)>1,3,(F10-9))))","v":0},3500,{"$f":"(D19+E19)*F19","v":0},"A"]
[null,null,null,{"$f":"IF((E11-9)<0,0,IF((E11-9)>9,1,IF((E11-11)>1,3,(E11-9))))","v":0},0,3500,{"$f":"(D20+E20)*F20","v":0},"B"]
[null,null,null,0,0,3500,0,"C"]
[null,null,null,0,0,3500,0,"D"]
[null,null,null,0,0,3500,0,"E"]
[null,null,null,0,0,3500,0,"F"]
[null,null,null,null,null,null,{"$f":"G19+G20+G21+G22+G23+G24","v":0}]
["2- Financement dérogatoire - CAP de moins de 3 ans entre 4 et 7 élèves"]
[null,null,null,null,"effectifs"]
["Formations dispensées ",null,null,"Groupe","1ere année","2ème année"]
[null,null,null,{"$f":"IF(E29<4,0,1)+IF(F29<4,0,1)","v":0}]
[null,null,null,{"$f":"IF(E30<4,0,1)+IF(F30<4,0,1)","v":0}]
[null,null,null,0]
[null,null,null,0]
[null,null,null,{"$f":"SUM(D29:D32)","v":0},{"$f":"SUM(E29:E32)","v":0},{"$f":"SUM(F29:F32)","v":0}]
[]
["3- Financement dérogatoire - Bac Pro  "]
[null,null,null,null,null,"effectifs"]
["Formations dispensées ",null,null,null,"1ere année","2ème année"]
[null,null,null,"Bac Pro limite à 9",null,null,{"$f":"(IF(E38>9,9,E38)+IF(F38>9,9,F38))*3500","v":0},{"$f":"IF(E38>0,1,0)+IF(F38>0,1,0)","v":0}]
[null,null,null,"Bac Pro limite à 9",null,null,{"$f":"(IF(E39>9,9,E39)+IF(F39>9,9,F39))*3500","v":0},{"$f":"IF(E39>0,1,0)+IF(F39>0,1,0)","v":0}]
[null,null,null,null,{"$f":"SUM(E38:E39)","v":0},{"$f":"SUM(F38:F39)","v":0},{"$f":"SUM(G38:G39)","v":0}]
[]
["4- Subventions",null,null,null,null,null,"Subvention"]
["Pédagogique",null,null,{"$f":"D16+D33","v":0},38000,{"$f":"D43*E43","v":0},{"$f":"F43+G25+G40","v":0}]
["Forfait Fonds Social",null,null,0,1600,null,{"$f":"D44*E44","v":0}]
["Equipement 1ère (Formation A)",null,null,"Construction Bois",{"$f":"IF(D45=\"Matériel Espaces Verts\",200,IF(D45=I14,160,IF(D45=\"Electricité\",170,IF(D45=\"Paysage\",120,IF(D45=\"Chaudronnerie\",200,IF(D45=\"Cuisine\",180,IF(D45=\"Service\",180,IF(D45=\"PSR\",180,IF(D45=\"Serrurier Métallier\",160,IF(D45=\"IMTB\",180,IF(D45=\"CIP\",176,IF(D45=\"Construction Bois\",200,IF(D45=\"Automobile\",200,IF(D45=\"Couture\",160,\"0\"))))))))))))))","v":200},{"$f":"IF(E10<1,0,IF(E10>0,9))","v":0},{"$f":"E45*F45","v":0}]
["Equipement 1ère (Formation B)",null,null,"Paysage",{"$f":"IF(D46=\"Matériel Espaces Verts\",200,IF(D46=I14,160,IF(D46=\"Electricité\",170,IF(D46=\"Paysage\",120,IF(D46=\"Chaudronnerie\",200,IF(D46=\"Cuisine\",180,IF(D46=\"Service\",180,IF(D46=\"PSR\",180,IF(D46=\"Serrurier Métallier\",160,IF(D46=\"IMTB\",180,IF(D46=\"CIP\",176,IF(D46=\"Construction Bois\",200,IF(D46=\"Automobile\",200,IF(D46=\"Couture\",160,\"0\"))))))))))))))","v":120},0,{"$f":"E46*F46","v":0}]
["Equipement 1ère (Formation C)",null,null,"Chaudronnerie",{"$f":"IF(D47=\"Matériel Espaces Verts\",200,IF(D47=I14,160,IF(D47=\"Electricité\",170,IF(D47=\"Paysage\",120,IF(D47=\"Chaudronnerie\",200,IF(D47=\"Cuisine\",180,IF(D47=\"Service\",180,IF(D47=\"PSR\",180,IF(D47=\"Serrurier Métallier\",160,IF(D47=\"IMTB\",180,IF(D47=\"CIP\",176,IF(D47=\"Construction Bois\",200,IF(D47=\"Automobile\",200,IF(D47=\"Couture\",160,\"0\"))))))))))))))","v":200},0,0]
["Equipement 1ère (Formation D)",null,null,"Cuisine",{"$f":"IF(D48=\"Matériel Espaces Verts\",200,IF(D48=I14,160,IF(D48=\"Electricité\",170,IF(D48=\"Paysage\",120,IF(D48=\"Chaudronnerie\",200,IF(D48=\"Cuisine\",180,IF(D48=\"Service\",180,IF(D48=\"PSR\",180,IF(D48=\"Serrurier Métallier\",160,IF(D48=\"IMTB\",180,IF(D48=\"CIP\",176,IF(D48=\"Construction Bois\",200,IF(D48=\"Automobile\",200,IF(D48=\"Couture\",160,\"0\"))))))))))))))","v":180},0,0]
["Equipement 1ère (Formation E)",null,null,"Service",{"$f":"IF(D49=\"Matériel Espaces Verts\",200,IF(D49=I14,160,IF(D49=\"Electricité\",170,IF(D49=\"Paysage\",120,IF(D49=\"Chaudronnerie\",200,IF(D49=\"Cuisine\",180,IF(D49=\"Service\",180,IF(D49=\"PSR\",180,IF(D49=\"Serrurier Métallier\",160,IF(D49=\"IMTB\",180,IF(D49=\"CIP\",176,IF(D49=\"Construction Bois\",200,IF(D49=\"Automobile\",200,IF(D49=\"Couture\",160,\"0\"))))))))))))))","v":180},0,0]
["Equipement 1ère (Formation F)",null,null,"PSR",{"$f":"IF(D50=\"Matériel Espaces Verts\",200,IF(D50=I14,160,IF(D50=\"Electricité\",170,IF(D50=\"Paysage\",120,IF(D50=\"Chaudronnerie\",200,IF(D50=\"Cuisine\",180,IF(D50=\"Service\",180,IF(D50=\"PSR\",180,IF(D50=\"Serrurier Métallier\",160,IF(D50=\"IMTB\",180,IF(D50=\"CIP\",176,IF(D50=\"Construction Bois\",200,IF(D50=\"Automobile\",200,IF(D50=\"Couture\",160,\"0\"))))))))))))))","v":180},0,0]
["Equipement (CAP 1 - de 3 ans)",null,null,"Electricité",{"$f":"IF(D51=\"Matériel Espaces Verts\",200,IF(D51=I14,160,IF(D51=\"Electricité\",170,IF(D51=\"Paysage\",120,IF(D51=\"Chaudronnerie\",200,IF(D51=\"Cuisine\",180,IF(D51=\"Service\",180,IF(D51=\"PSR\",180,IF(D51=\"Serrurier Métallier\",160,IF(D51=\"IMTB\",180,IF(D51=\"CIP\",176,IF(D51=\"Construction Bois\",200,IF(D51=\"Automobile\",200,IF(D51=\"Couture\",160,\"0\"))))))))))))))","v":170},{"$f":"IF(E29<1,0,IF(E29>0,9))","v":0},{"$f":"E51*F51","v":0}]
["Equipement (CAP 1 - de 3 ans)",null,null,"Electricité",{"$f":"IF(D52=\"Matériel Espaces Verts\",200,IF(D52=I14,160,IF(D52=\"Electricité\",170,IF(D52=\"Paysage\",120,IF(D52=\"Chaudronnerie\",200,IF(D52=\"Cuisine\",180,IF(D52=\"Service\",180,IF(D52=\"PSR\",180,IF(D52=\"Serrurier Métallier\",160,IF(D52=\"IMTB\",180,IF(D52=\"CIP\",176,IF(D52=\"Construction Bois\",200,IF(D52=\"Automobile\",200,IF(D52=\"Couture\",160,\"0\"))))))))))))))","v":170},{"$f":"IF(E30<1,0,IF(E30>0,9))","v":0},{"$f":"E52*F52","v":0}]
["Equipement (CAP 1 - de 3 ans)",null,null,"Electricité",{"$f":"IF(D53=\"Matériel Espaces Verts\",200,IF(D53=I14,160,IF(D53=\"Electricité\",170,IF(D53=\"Paysage\",120,IF(D53=\"Chaudronnerie\",200,IF(D53=\"Cuisine\",180,IF(D53=\"Service\",180,IF(D53=\"PSR\",180,IF(D53=\"Serrurier Métallier\",160,IF(D53=\"IMTB\",180,IF(D53=\"CIP\",176,IF(D53=\"Construction Bois\",200,IF(D53=\"Automobile\",200,IF(D53=\"Couture\",160,\"0\"))))))))))))))","v":170},{"$f":"IF(E31<1,0,IF(E31>0,9))","v":0},0]
["Equipement (CAP 1 - de 3 ans)",null,null,"Electricité",{"$f":"IF(D54=\"Matériel Espaces Verts\",200,IF(D54=I14,160,IF(D54=\"Electricité\",170,IF(D54=\"Paysage\",120,IF(D54=\"Chaudronnerie\",200,IF(D54=\"Cuisine\",180,IF(D54=\"Service\",180,IF(D54=\"PSR\",180,IF(D54=\"Serrurier Métallier\",160,IF(D54=\"IMTB\",180,IF(D54=\"CIP\",176,IF(D54=\"Construction Bois\",200,IF(D54=\"Automobile\",200,IF(D54=\"Couture\",160,\"0\"))))))))))))))","v":170},{"$f":"IF(E32<1,0,IF(E32>0,9))","v":0},0]
[null,null,null,null,"Aide sociale",null,{"$f":"G44+G45+G46+G47+G48+G49+G50+G51+G54","v":0}]
[null,null,null,null,"TOTAL",null,{"$f":"G55+G43","v":0}]

{"sheet":"3 Moyens mis en Oeuvre ","index":2,"n_rows":75,"n_cols":31,"rows_kept":75,"cut":false,"hidden":false,"merged":[[68,30,68,35],[69,30,80,35],[13,0,13,5],[11,0,11,1],[7,2,7,4],[11,2,11,4],[14,0,25,5],[27,0,27,5],[28,0,39,5],[7,0,7,1],[18,7,23,12],[67,0,67,5],[68,0,73,5],[74,0,74,5],[75,0,80,5],[63,0,63,2],[0,7,0,12],[1,7,6,12],[8,7,8,12],[9,7,14,12],[17,7,17,12],[64,0,64,2],[63,4,63,5],[65,0,65,2],[49,0,49,5],[50,0,61,5]]}
[null,null,null,null,null,null,null,"Autres services : "]
[]
[null,null,"Moyens mis en œuvre"]
[]
[]
[]
[]
["Ecole de Production : "]
[null,null,null,null,null,null,null,"Hébergement (solutions proposées, nbr lits, activités proposées) : "]
[null,null,"Année scolaire : "]
[]
["Locaux (m²) : "]
[]
["Plateau technique (descriptif des équipements "]
[]
[]
[]
[null,null,null,null,null,null,null,"Restauration (solutions proposées midi / soir) : "]
[]
[]
[]
[]
[]
[]
[]
[]
[]
["Espace pédagogique"]
[]
[]
[]
[]
[]
[]
[]
[]
[]
[]
[]
[]
[]
[]
[]
[]
[]
[]
[]
[]
[]
["Locaux administratif"]
[]
[]
[]
[]
[]
[]
[]
[]
[]
[]
[]
[]
[]
["Salariés (effectif et ETP) : "]
["Personnel  pédagogique (effectif et ETP) : "]
["Personnel  administratif(effectif et ETP) : "]
[]
["Personnel  pédagogique (descriptif, composition de l'équipe, évolution)"]
[null,null,null,null,null,null,null,null,null,null,null,null,null,null,null,null,null,null,null,null,null,null,null,null,null,null,null,null,null,null,"Espace pédagogique"]
[]
[]
[]
[]
[]
["Personnel  administratif (descriptif, composition de l'équipe, évolution)"]

{"sheet":"4 Budget prévisionnel","index":3,"n_rows":46,"n_cols":6,"rows_kept":46,"cut":false,"hidden":false,"merged":[[5,2,5,4],[9,0,9,2],[9,3,9,5]]}
[]
[null,null,"Budget Prévisionnel"]
[]
[]
[]
[null,"Ecole de Production : "]
[]
[null,null,"Année scolaire : "]
[]
["CHARGES",null,null,"PRODUITS"]
[60,"Achats",{"$f":"C12+C13+C14+C15+C16","v":0},70,"Vente de produits fabriqués, prestations de services,",{"$f":"SUM(F12:F14)","v":0}]
[601,"Achats de matières premières",null,"dont ","Production vendue"]
[602,"Achats stockés",null,"dont ","Hébergement restauration"]
[603,"Variation du stock",null,"dont ","frais de scolarité"]
[604,"Etudes et prestations de Services",null,"dont ","Autres produits"]
[606,"Achats non stockés"]
[61,"Services extérieurs",{"$f":"C18+C19+C20+C21+C22+C23+C24","v":0},74,"Subventions d'exploitation",{"$f":"SUM(F18:F26)","v":0}]
[611,"Soustraitance générale",null,741,"Conseil Régional / Fonctionnement Pédagogique",{"$f":"'2 Calcul de la subvention '!G43","v":0}]
[612,"Redevances de crédit-bail",null,741,"Conseil Régional / Aide sociale",{"$f":"'2 Calcul de la subvention '!G55","v":0}]
["613/614","Locations",null,742,"Département"]
[615,"Entretien et réparation",null,743,"Commune"]
[616,"Assurances",null,744,"Etat"]
[617,"Etudes et Recherches",null,745,"Fonds Européens"]
[618,"Documentation, colloques, séminaires",null,747,"Autres"]
[62,"Autres services extérieurs",{"$f":"C26+C27+C28+C29+C30+C31+C32","v":0},null," dont Taxe d'apprentissage"]
[621,"Personnels extérieurs"]
[622,"Intermédiaires et honoraires",null,75,"Autres Produits de Gestion courante",{"$f":"F28","v":0}]
[623,"Publicité et publications"]
["624/625","Déplacements, Mission Réception",null,76,"Produits financiers",{"$f":"F30","v":0}]
[626,"Poste et télécommunication"]
[627,"Frais banquaires ",null,77,"Produits exceptionnels",0]
[628,"Côtisations"]
[63,"Impôts et taxes",null,78,"Reprises ",{"$f":"F34","v":0}]
[64,"Personnel",{"$f":"C35+C36+C37+C38","v":0}]
[641,"Rémunération du personnel",null,79,"Transfert de charges",{"$f":"SUM(F36:F41)","v":0}]
[645,"Sécurité Sociale et prévoyance"]
[647,"Autres charges sociales"]
[648,"Autres charges de personnel"]
[65,"Autres charges de gestion courante"]
[66,"Charges financières"]
[67,"Charges exceptionnelles"]
[68,"Dotation aux amortissements",null,87,"Contributions volontaires en Nature",{"$f":"F43","v":0}]
[null,"Valorisation du Bénévolat",null,870,"Bénévolat"]
[null,"Total des charges ",{"$f":"C11+C17+C25+C33+C34+C39+C40+C41+C42+C43","v":0},null,"Total des Produits ",{"$f":"F43+F42+F35+F33+F31+F29+F27+F17+F11","v":0}]
[null,"Résultat",null,null,"Déficit "]
[null,"Total Général ",{"$f":"C44+C45","v":0},null,"Total Général",{"$f":"F44+F45","v":0}]

{"sheet":"5 Contrat d'engagement républic","index":4,"n_rows":34,"n_cols":8,"rows_kept":34,"cut":false,"hidden":false,"merged":[[29,7,31,13],[32,7,32,13],[33,7,34,13],[12,7,12,13],[13,7,14,13],[15,7,15,13],[16,7,22,13],[23,7,23,13],[29,0,33,6],[12,1,17,5],[19,0,19,2],[20,0,20,2],[21,0,21,2],[19,3,25,6],[0,7,0,13],[1,7,5,13],[6,7,6,13],[7,7,11,13],[27,0,28,6],[5,4,5,5],[5,0,5,3],[7,1,11,5],[1,2,1,6],[3,0,3,2],[3,3,3,6],[24,7,28,13]]}
[null,null,"Contrat d’engagement républicain",null,null,null,null,"ENGAGEMENT N° 1 : RESPECT DES LOIS DE LA RÉPUBLIQUE"]
[null,null,"Pour les associations non agréées par l’Etat ou par ses établissements publics et pour les associations non reconnues d’utilité publique ",null,null,null,null,"Le respect des lois de la République s'impose aux associations et aux fondations, qui ne doivent entreprendre ni inciter à aucune action manifestement contraire à la loi, violente ou susceptible d'entraîner des troubles graves à l'ordre public. \nL'association ou la fondation bénéficiaire s'engage à ne pas se prévaloir de convictions politiques, philosophiques ou religieuses pour s'affranchir des règles communes régissant ses relations avec les collectivités publiques. \nElle s'engage notamment à ne pas remettre en cause le caractère laïque de la République.\n"]
[]
["Je soussigné(e), (nom et prénom) :"]
[]
["Représentant(e) légal(e) de l’association : "]
[null,null,null,null,null,null,null,"ENGAGEMENT N° 2 : LIBERTÉ DE CONSCIENCE"]
["Déclare :  ","* que l’association a pris connaissance des dispositions de l’article 10-1 de la loi n° 2000-321 du 12 avril 2000 relative aux droits des citoyens dans leurs relations avec les administrations et de son décret d’application n°2021-1947 du 31 décembre 2021",null,null,null,null,null,"L'association ou la fondation s'engage à respecter et protéger la liberté de conscience de ses membres et des tiers, notamment des bénéficiaires de ses services, et s'abstient de tout acte de prosélytisme abusif exercé notamment sous la contrainte, la menace ou la pression.\nCet engagement ne fait pas obstacle à ce que les associations ou fondations dont l'objet est fondé sur des convictions, notamment religieuses, requièrent de leurs membres une adhésion loyale à l'égard des valeurs ou des croyances de l'organisation."]
[]
[]
[]
[]
[null,"* que l’association souscrit au contrat d’engagement républicain annexé au décret n°2021-1947 du 31 décembre 2021 pris pour l’application de l’article 10-1 de la loi n° 2000-321 du 12 avril 2000 relative aux droits des citoyens dans leurs relations avec les administrations et reproduit dans le présent formulaire de demande de subvention.",null,null,null,null,null,"ENGAGEMENT N° 3 : LIBERTÉ DES MEMBRES DE L'ASSOCIATION"]
[null,null,null,null,null,null,null,"L'association s'engage à respecter la liberté de ses membres de s'en retirer dans les conditions prévues à l'article 4 de la loi du 1er juillet 1901 et leur droit de ne pas en être arbitrairement exclu."]
[]
[null,null,null,null,null,null,null,"ENGAGEMENT N° 4 : ÉGALITÉ ET NON-DISCRIMINATION"]
[null,null,null,null,null,null,null,"L'association ou la fondation s'engage à respecter l'égalité de tous devant la loi.\nElle s'engage, dans son fonctionnement interne comme dans ses rapports avec les tiers, à ne pas opérer de différences de traitement fondées sur le sexe, l'orientation sexuelle, l'identité de genre, l'appartenance réelle ou supposée à une ethnie, une Nation, une prétendue race ou une religion déterminée qui ne reposeraient pas sur une différence de situation objective en rapport avec l'objet statutaire licite qu'elle poursuit, ni cautionner ou encourager de telles discriminations.\nElle prend les mesures, compte tenu des moyens dont elle dispose, permettant de lutter contre toute forme de violence à caractère sexuel ou sexiste."]
[]
[]
["Signature du représentant légal,"]
[]
["Cachet de l’école de production,"]
[]
["Date : ",null,null,null,null,null,null,"ENGAGEMENT N° 5 : FRATERNITÉ ET PREVENTION DE LA VIOLENCE"]
[null,null,null,null,null,null,null,"L'association ou la fondation s'engage à agir dans un esprit de fraternité et de civisme.\nDans son activité, dans son fonctionnement interne comme dans ses rapports avec les tiers, l'association s'engage à ne pas provoquer à la haine ou à la violence envers quiconque et à ne pas cautionner de tels agissements. Elle s'engage à rejeter toutes formes de racisme et d'antisémitisme."]
[]
[]
["Contrat d’engagement républicain annexé au décret n° 2021-1947 du 31 décembre 2021 pris pour l'application de l'article 10-1 de la loi n° 2000-321 du 12 avril 2000 et approuvant le contrat d'engagement républicain des associations et fondations bénéficiant de subventions publiques ou d'un agrément de l'Etat"]
[]
["L'importance des associations et des fondations dans la vie de la Nation et leur contribution à l'intérêt général justifient que les autorités administratives décident de leur apporter un soutien financier ou matériel. Il en va de même pour les fédérations sportives et les ligues professionnelles. L'administration, qui doit elle-même rendre des comptes aux citoyens, justifier du bon usage des deniers publics et de la reconnaissance qu'elle peut attribuer, est fondée à s'assurer que les organismes bénéficiaires de subventions publiques ou d'un agrément respectent le pacte républicain. A cette fin la loi n° 2021-1109 du 24 août 2021 confortant le respect des principes de la République a institué le contrat d'engagement républicain. \nConformément aux dispositions des articles 10-1 et 25-1 de la loi n° 2000-321 du 12 avril 2000 relative aux droits des citoyens dans leurs relations avec les administrations, le présent contrat a pour objet de préciser les engagements que prend toute association ou fondation qui sollicite une subvention publique ou un agrément de l'Etat. \nAinsi, l'association ou la fondation « s'engage (…) à respecter les principes de liberté, d'égalité, de fraternité et de dignité de la personne humaine ainsi que les symboles de la République (…) », « à ne pas remettre en cause le caractère laïque de la République » et « à s'abstenir de toute action portant atteinte à l'ordre public ». \nCes engagements sont souscrits dans le respect des libertés constitutionnellement reconnues, notamment la liberté d'association et la liberté d'expression dont découlent la liberté de se réunir, de manifester et de création.",null,null,null,null,null,null,"ENGAGEMENT N° 6 : RESPECT DE LA DIGNITÉ DE LA PERSONNE HUMAINE\nL'association ou la fondation s'engage à n'entreprendre, ne soutenir, ni cautionner aucune action de nature à porter atteinte à la sauvegarde de la dignité de la personne humaine.\nElle s'engage à respecter les lois et règlements en vigueur destinés à protéger la santé et l'intégrité physique et psychique de ses membres et des bénéficiaires de ses services et ses activités, et à ne pas mettre en danger la vie d'autrui par ses agissements ou sa négligence.\nElle s'engage à ne pas créer, maintenir ou exploiter la vulnérabilité psychologique ou physique de ses membres et des personnes qui participent à ses activités à quelque titre que ce soit, notamment des personnes en situation de handicap, que ce soit par des pressions ou des tentatives d'endoctrinement.\nElle s'engage en particulier à n'entreprendre aucune action de nature à compromettre le développement physique, affectif, intellectuel et social des mineurs, ainsi que leur santé et leur sécurité."]
[]
[]
[null,null,null,null,null,null,null,"ENGAGEMENT N° 7 : RESPECT DES SYMBOLES DE LA RÉPUBLIQUE"]
[null,null,null,null,null,null,null,"L'association s'engage à respecter le drapeau tricolore, l'hymne national, et la devise de la République."]